Cogmind - Beta 13 @@@ ROGUE MODE // 2024.04.03 @ 18:14:08 Player: SunoPerson Result: Destroyed by S-27 Virus with Autogun Performance ------------- Evolutions (4) 2000 Regions Visited (5) 1000 Robots Destroyed (53) 265 Value Destroyed (1924) 1924 Prototype IDs (3) 60 Alien Tech Used (0) 0 Bonus (50) 50 TOTAL SCORE: 5299 Bonus ------- High Alert Combat Kills 50 Cogmind --------- Core Integrity 0/850 Matter 17/300 Energy 264/300 System Corruption 14% Temperature Warm (132) Movement Walking (260) Ox2 Location -6/Factory Parts ------- > --- POWER (2) -------- Angular Momentum Engine > --- PROPULSION (4) --- Armored Leg > --- UTILITY (5) ------ Improved Thermal Generator Core Analyzer Layered Light Armor Plating > --- WEAPON (4) ------- Heavy Laser Heavy Laser > --- INVENTORY (5) ---- (None) Peak State ------------ > --- POWER ------------ Nuclear Core > --- PROPULSION ------- Improved Aluminum Leg Titanium Leg Improved Carbon-fiber Leg Improved Carbon-fiber Leg > --- UTILITY ---------- Coolant Injector Improved Targeting Computer Transmission Jammer Hardened Medium Armor Plating > --- WEAPON ----------- Improved Medium Laser Pulse Rifle Improved EM Pulse Cannon Plasma Cannon > --- INVENTORY -------- Light Deuterium Engine Plasma Cannon Advanced Assault Cannon Subdweller Shrapnel Launcher [Rating: 44] Favorites ----------- Power Light Ion Engine Engine Light Ion Engine Power Core Nuclear Core Propulsion Light Treads Treads Light Treads Leg Improved Carbon-fiber Leg Wheel Subdweller Monowheel Hover Unit Cooled Airjet Utility Small Storage Unit Device Improved Terrain Scanner Storage Small Storage Unit Processor Improved Targeting Computer Hackware Hacking Suite Protection Scrap Shield Weapon EM Pulse Gun Energy Gun EM Pulse Gun Energy Cannon Beam Cannon Ballistic Gun Light Assault Rifle Launcher Subdweller Shrapnel Launcher Impact Weapon Maul Build | -11 -10 -10 -8 -7 -6 ------- Run | Yrd Mat Sub Mat Fac Fac Slots Evolved 8 | . . . 4 2 2 Power 1 | . . . . . 1 Propulsion 2 | . . . . 2 . Utility 3 | . . . 2 . 1 Weapon 2 | . . . 2 . . Parts Attached 88 | 7 7 11 27 16 20 Power 13 | 1 3 1 2 1 5 Engine 9 | 1 1 1 1 1 4 Core 4 | . 2 . 1 . 1 Reactor . | . . . . . . Propulsion 21 | 2 . 5 7 5 2 Treads 4 | 2 . . 2 . . Leg 10 | . . . 5 4 1 Wheel 5 | . . 5 . . . Hover 2 | . . . . 1 1 Flight . | . . . . . . Utility 23 | 2 2 3 7 5 4 Device 10 | 1 1 1 3 2 2 Storage 3 | 1 1 1 . . . Processor 3 | . . . 1 1 1 Hackware 1 | . . . . 1 . Protection 6 | . . 1 3 1 1 Artifact . | . . . . . . Weapon 31 | 2 2 2 11 5 9 Energy Gun 13 | 1 1 . 4 . 7 Energy Cannon 10 | . . 2 2 4 2 Ballistic Gun 5 | 1 1 . 3 . . Ballistic Cannon . | . . . . . . Launcher 2 | . . . 1 1 . Special Weapon . | . . . . . . Impact Weapon 1 | . . . 1 . . Slashing Weapon . | . . . . . . Piercing Weapon . | . . . . . . Special Melee Weapon . | . . . . . . Unidentified Prototypes 3 | . . . 2 1 . Parts Lost 24 | . 1 . 10 7 6 Power 3 | . . . 1 1 1 Propulsion 5 | . 1 . 1 2 1 Utility 5 | . . . 2 . 3 Weapon 11 | . . . 6 4 1 Highest Loss Streak 6 | . 1 . 6 5 4 To Critical Strikes . | . . . . . . Average Slot Usage (%) 75 | . 95 71 76 88 26 Engine 3 | . 5 2 7 1 1 Core 3 | . 8 . . 5 . Treads 6 | . 23 . 7 . . Leg 7 | . . . 7 23 . Wheel 4 | . . 22 . . . Device 8 | . 14 3 5 13 3 Storage 4 | . 14 3 6 . . Processor 4 | . . . 3 6 10 Protection 5 | . . 9 7 6 . Energy Gun 9 | . 14 . 11 13 1 Energy Cannon 10 | . . 25 12 10 . Ballistic Gun 3 | . 14 . 4 . . Impact Weapon 1 | . . . 2 2 . Naked Turns 31 | . . 21 10 . . Heaviest Build 50 | 12 50 50 47 37 37 Greatest Support 66 | 40 40 40 40 66 16 Greatest Overweight (x) 8 | . 2 2 8 8 6 Average Overweight (x) . | . 1 . . . . Largest Inventory Capacity 20 | 8 20 20 8 5 5 Average Capacity 8 | 7 18 6 7 5 5 Most Carried 13 | 2 11 13 8 5 5 Average Carried 4 | 1 8 5 5 4 2 Final Capacity 20 | 8 20 8 5 5 5 Final Carried 10 | 2 10 8 5 2 . Class Distribution -------------------- 66% | Mutant 14% | Gunner 7% | Subdweller-Mutant 3% | Subdweller-Tank 3% | Scavenger-Gunner Dominant Class ---------------- Mutant | -10/Materials Subdweller-Mutant | -10/Subcaves Subdweller-Tank | -8/Materials Gunner | -7/Factory Mutant | -6/Factory Resources | -11 -10 -10 -8 -7 -6 ----------- Run | Yrd Mat Sub Mat Fac Fac Matter Collected 1227 | 263 155 117 483 209 . Remotely . | . . . . . . Salvage Created 2068 | 23 384 . 776 612 273 Parts 104 | 4 26 . 36 28 10 Haulers Intercepted . | . . . . . . Recyclers Shooed 3 | . . . . . 3 Parts Field Recycled . | . . . . . . Retrieved Matter . | . . . . . . Parts Self-Destructed . | . . . . . . Prevented . | . . . . . . Kills | -11 -10 -10 -8 -7 -6 ------- Run | Yrd Mat Sub Mat Fac Fac Combat Hostiles Destroyed 44 | . 9 . 18 9 8 Melee 1 | . . . 1 . . Guns 20 | . 8 . 5 1 6 Cannons 13 | . . . 5 7 1 AOE 8 | . 1 . 7 . . Classes Destroyed 11 | 1 3 . 5 2 . Worker 2 | . . . 1 . 1 Tunneler 1 | 1 . . . . . Recycler 1 | . 1 . . . . Operator 2 | . . . 1 1 . Watcher 3 | . . . 1 2 . Swarmer 12 | . 3 . 3 . 6 Grunt 20 | . 6 . 10 3 1 Brawler 1 | . . . . 1 . Duelist 1 | . . . 1 . . Sentry 8 | . . . 4 4 . Programmer 2 | . . . . 1 1 Best Kill Streak 9 | 1 3 . 9 3 3 Combat Bots Only 7 | . 3 . 7 3 3 Max Kills in Single Turn 4 | 1 1 . 4 1 2 Gunslinging 1 | . . . . . 1 Exploded 3 | . 1 . 3 . . Melee 1 | . . . 1 . . Uniques/NPCs Destroyed . | . . . . . . Combat | -11 -10 -10 -8 -7 -6 -------- Run | Yrd Mat Sub Mat Fac Fac Hostile Shots Fired 555 | . 65 7 115 194 174 Missed 172 | . 19 1 30 65 57 Damage Taken 5402 | . 520 114 1565 1659 1544 Core 1788 | . 64 20 507 336 861 Absorbed by Shields 44 | . . . . . 44 Core Remaining (%) 56 | 100 . 66 7 52 . Volleys Fired 129 | 2 31 1 47 27 21 Largest 4 | 2 2 2 4 4 4 Hottest 303 | 60 70 140 240 268 303 Shots Fired 312 | 4 62 2 127 80 37 Gun 208 | 4 62 . 66 42 34 Cannon 96 | . . 2 56 35 3 Launcher 8 | . . . 5 3 . Special . | . . . . . . Kinetic 76 | 2 31 . 40 3 . Thermal 193 | . 15 2 73 66 37 Explosive . | . . . . . . Electromagnetic 43 | 2 16 . 14 11 . Robot Hit Streak 22 | 2 9 4 9 22 9 Robot Miss Streak 6 | 1 3 . 4 3 6 Penetration Max . | . . . . . . Secondary Targets 5 | . 3 . . . 2 Max Gunslinging Chain 1 | . 1 . . . 1 Shots Hit Robots 195 | 2 38 2 74 56 23 Core Hits 96 | 1 18 1 38 28 10 Critical Kills . | . . . . . . Critical Parts Destroyed . | . . . . . . Critical Strikes 5 | . 2 . . . 3 Burn 5 | . 2 . . . 3 Melee Attacks 2 | . . . 1 1 . Impact 2 | . . . 1 1 . Slashing . | . . . . . . Piercing . | . . . . . . Sneak Attacks . | . . . . . . Combat Hostiles . | . . . . . . Follow-up Attacks . | . . . . . . Damage Inflicted 4539 | 28 551 45 2069 1245 601 Guns 2369 | 22 485 . 813 578 471 Cannons 1410 | . . 45 645 624 96 Explosions 659 | . 60 . 563 36 . Melee 47 | . . . 47 . . Ramming 54 | 6 6 . 1 7 34 Kinetic 1263 | 9 221 . 997 36 . Thermal 2542 | . 174 45 783 973 567 Explosive . | . . . . . . Electromagnetic 633 | 13 150 . 241 229 . Impact 47 | . . . 47 . . Slashing . | . . . . . . Piercing . | . . . . . . Highest Corruption 14 | . . . . 3 14 Average Corruption 6 | . . . . 2 9 Corruption Purged . | . . . . . . Corruption Blocked . | . . . . . . Effects 28 | . . . . 5 23 Message Errors 7 | . . . . 1 6 Matter Fused 5 | . . . . 2 3 Heat Flow Errors 4 | . . . . . 4 Energy Discharges 3 | . . . . . 3 Parts Rejected 1 | . . . . 1 . Data Loss (minor) 4 | . . . . . 4 Misfires 1 | . . . . 1 . Alerts 1 | . . . . . 1 Misdirections 1 | . . . . . 1 Weapon Failures 1 | . . . . . 1 Overload Shots . | . . . . . . Overflow Damage 56 | . . . 45 11 . Projectiles 11 | . . . . 11 . Explosions 45 | . . . 45 . . Melee . | . . . . . . Knockbacks 2 | . . . . . 2 Impact 1 | . . . . . 1 Kinetic . | . . . . . . Secondary 1 | . . . . . 1 Self-Inflicted Damage 157 | . 29 . 82 31 15 Shots 4 | . 1 . 2 1 . Rammed 13 | 1 1 . . . 11 Targets Rammed 16 | 1 2 . 1 1 11 Kicked 2 | . . . 1 1 . Crushed 1 | . 1 . . . . Highest Temperature 893 | 20 143 3 893 408 809 Average Temperature 200 | 15 44 2 304 135 250 Received Heat Transfer 2049 | . 231 27 765 657 369 Effects 66 | . . . 39 6 21 Shutdowns 12 | . . . 9 . 3 Energy Bleed 7 | . . . 3 . 4 Interference 14 | . . . 5 5 4 Matter Decay 6 | . . . 4 . 2 Short Circuit 6 | . . . 4 . 2 Damage (minor) 7 | . . . 5 1 1 Damage (major) 11 | . . . 6 . 5 Damage (core) 3 | . . . 3 . . Siege Activations . | . . . . . . Robots Corrupted . | . . . . . . Combat Hostiles . | . . . . . . Parts Fried . | . . . . . . Impact Corruptions . | . . . . . . Robots Melted 2 | . . . . 1 1 Combat Hostiles 2 | . . . . 1 1 Parts Melted 20 | . . . 3 10 7 Heat Transferred 5289 | . 581 74 1321 1971 1342 Parts Sabotaged . | . . . . . . Parts Stolen . | . . . . . . Parts Stripped . | . . . . . . Power Chain Reactions 2 | . 1 . 1 . . Alert | -11 -10 -10 -8 -7 -6 ------- Run | Yrd Mat Sub Mat Fac Fac Peak Influence 523 | 5 200 . 523 316 395 Initial 185 | . . . . 185 58 Average 73 | . 66 . 173 154 145 Maximum Alert Level 2 | . 1 . 2 1 1 Low Security (%) 87 | 100 95 . 69 73 72 Level 1 10 | . 4 . 18 26 27 Level 2 1 | . . . 11 . . Level 3 . | . . . . . . Level 4 . | . . . . . . Level 5 . | . . . . . . High Security . | . . . . . . Max Security . | . . . . . . Squads Dispatched 11 | . . . 2 3 6 Investigation 3 | . . . 1 1 1 Extermination 3 | . . . . 2 1 Reinforcement 5 | . . . 1 . 4 Assault . | . . . . . . Garrison . | . . . . . . Intercept . | . . . . . . Searches Triggered . | . . . . . . Construction Impeded 2 | . . . . . 2 Haulers Reinforced . | . . . . . . Active Scanning Responses . | . . . . . . Cargo Convoy Interrupts . | . . . . . . Stealth | -11 -10 -10 -8 -7 -6 --------- Run | Yrd Mat Sub Mat Fac Fac Distress Signals 4 | . 1 . . 1 2 Communications Jammed 1 | . . . . 1 . Distress Signals 1 | . . . . 1 . Times Spotted 98 | . 15 9 26 18 30 Peak Tracking Total 8 | . 4 2 7 5 8 Tactical Retreats 10 | . . . 1 1 8 Traps | -11 -10 -10 -8 -7 -6 ------- Run | Yrd Mat Sub Mat Fac Fac Traps Triggered 4 | . . . 1 . 3 Indirectly . | . . . . . . Trap Hack Attempts . | . . . . . . Triggered . | . . . . . . Disarmed . | . . . . . . Reprogrammed . | . . . . . . Reused . | . . . . . . Traps Extracted . | . . . . . . Installed . | . . . . . . Triggered . | . . . . . . Machines | -11 -10 -10 -8 -7 -6 ---------- Run | Yrd Mat Sub Mat Fac Fac Machines Disabled 7 | . . . 3 4 . Max in Single Turn 1 | . . . 1 1 . Garrison Access 2 | . . . . 1 1 Machines Repaired . | . . . . . . Machines Dismantled . | . . . . . . Machines Sabotaged . | . . . . . . Overloaded Fab Kills . | . . . . . . Hacking | -11 -10 -10 -8 -7 -6 --------- Run | Yrd Mat Sub Mat Fac Fac Machines Accessed 18 | . 2 . 2 11 3 Terminals 13 | . 2 . 2 7 2 Fabricators 2 | . . . . 2 . Repair Stations . | . . . . . . Recycling Units . | . . . . . . Scanalyzers 1 | . . . . 1 . Garrison Access 2 | . . . . 1 1 Total Hacks 38 | . 4 . 4 20 10 Successful 23 | . 2 . 2 10 9 Failed 15 | . 2 . 2 10 1 Catastrophic 3 | . . . 2 1 . Database Lockouts . | . . . . . . Manual 6 | . 1 . 2 3 . Terminals 29 | . 4 . 4 12 9 Fabricators 4 | . . . . 4 . Repair Stations . | . . . . . . Recycling Units . | . . . . . . Scanalyzers 3 | . . . . 3 . Garrison Access 2 | . . . . 1 1 Terminal Hacks 18 | . 2 . 2 6 8 Record 7 | . . . . 1 6 Robot Analysis 1 | . 1 . . . . Open DSF 3 | . . . . 2 1 Alert Level 3 | . . . 1 2 . Maintenance Status 1 | . . . . 1 . Zone Layout 3 | . 1 . 1 . 1 Fabricator Hacks 1 | . . . . 1 . Network Status 1 | . . . . 1 . Repair Station Hacks . | . . . . . . Recycling Unit Hacks . | . . . . . . Scanalyzer 2 | . . . . 2 . Insert Component 1 | . . . . 1 . Analyze 1 | . . . . 1 . Garrison Access Hacks 2 | . . . . 1 1 Seal Access 2 | . . . . 1 1 Unauthorized Hacks . | . . . . . . Terminals . | . . . . . . Fabricators . | . . . . . . Repair Stations . | . . . . . . Recycling Units . | . . . . . . Scanalyzers . | . . . . . . Garrison Access . | . . . . . . Data Cores Recovered 1 | . . . . 1 . Used 1 | . . . . 1 . Hacking Detections 11 | . 1 . 2 6 2 Full Trace Events 3 | . . . 1 1 1 Feedback Events . | . . . . . . Feedback Blocked . | . . . . . . Robot Schematics Acquired . | . . . . . . Robots Built . | . . . . . . Authchips . | . . . . . . Time . | . . . . . . Total Robot Build Rating . | . . . . . . Part Schematics Acquired 1 | . . . . 1 . Parts Built . | . . . . . . Authchips . | . . . . . . Time . | . . . . . . Total Part Build Rating . | . . . . . . Parts Repaired . | . . . . . . Time . | . . . . . . Parts Recycled . | . . . . . . Recycled Matter . | . . . . . . Retrieved Matter . | . . . . . . Retrieved Components . | . . . . . . Parts Scanalyzed 1 | . . . . 1 . Part Schematics Acquired 1 | . . . . 1 . Parts Damaged 1 | . . . . 1 . Bothacking | -11 -10 -10 -8 -7 -6 ------------ Run | Yrd Mat Sub Mat Fac Fac Used RIF Installer . | . . . . . . Robots Hacked . | . . . . . . Non-combat . | . . . . . . Combat . | . . . . . . Robot Hacks Applied . | . . . . . . Relay Couplers Released . | . . . . . . Fabnet Peak Effective % . | . . . . . . Robots Rewired . | . . . . . . Allies Hacked . | . . . . . . Hacks Repelled . | . . . . . . Allies | -11 -10 -10 -8 -7 -6 -------- Run | Yrd Mat Sub Mat Fac Fac Total Allies . | . . . . . . Largest Group . | . . . . . . Highest-Rated Group . | . . . . . . Highest-Rated Ally . | . . . . . . Total Orders . | . . . . . . Ally Attacks . | . . . . . . Total Damage . | . . . . . . Kills . | . . . . . . Allies Corrupted . | . . . . . . Allies Melted . | . . . . . . Intel | -11 -10 -10 -8 -7 -6 ------- Run | Yrd Mat Sub Mat Fac Fac Robot Analysis Total 1 | . 1 . . . . Derelict Logs Recovered 3 | . . 3 . . . Drone Launches . | . . . . . . Drone Recoveries . | . . . . . . Exploration | -11 -10 -10 -8 -7 -6 ------------- Run | Yrd Mat Sub Mat Fac Fac Turns Passed 8796 | 3552 1097 974 1033 1418 722 Spaces Moved 4104 | 1109 361 824 473 823 514 Core 763 | 12 . 40 84 148 479 Treads 1615 | 1097 361 17 140 . . Legs 908 | . . . 228 675 5 Wheels 788 | . . 767 21 . . Hover 30 | . . . . . 30 Flight . | . . . . . . Fastest Speed 50 | 50 160 50 50 50 50 Average Speed 140 | 158 246 113 169 121 75 Slowest Speed 450 | 160 320 320 450 450 350 Overloaded Moves . | . . . . . . Propulsion Burnouts . | . . . . . . Robots Hopped . | . . . . . . Cave-ins Triggered . | . . . . . . Exploration Rate (%) 47 | 96 63 40 43 21 21 Regions Visited 5 Branch Regions 1 Pre-discovered Areas 1 | . . 1 . . . Known Exits Taken 1 | . . . 1 . . Unknown Exits Taken 4 | 1 1 1 . 1 . Scrap Searched 3 | . . 3 . . . Spaces Dug . | . . . . . . Terrain Destroyed 110 | . 3 . 74 33 . Melee . | . . . . . . Projectile 13 | . . . 13 . . AOE 97 | . 3 . 61 33 . Terrain Rammed . | . . . . . . Walls Destroyed . | . . . . . . Machines Disabled . | . . . . . . Actions | -11 -10 -10 -8 -7 -6 --------- Run | Yrd Mat Sub Mat Fac Fac Total 6878 | 2892 503 872 611 1186 814 Wait 2422 | 1772 92 . 39 295 224 Move 4099 | 1108 360 823 472 822 514 Hop . | . . . . . . Pick Up 49 | 2 8 17 10 6 6 Fast Attach 38 | 7 . 7 13 4 7 Attach 30 | . . 3 8 6 13 Detach 7 | . . 1 1 . 5 Swap 20 | . 7 1 6 6 . Drop 57 | . 3 19 13 18 4 Fire 129 | 2 31 1 47 27 21 Melee 2 | . . . 1 1 . Ram 11 | . . . . . 11 Kick 2 | . . . 1 1 . Crush 3 | 1 2 . . . . Escape Stasis 9 | . . . . . 9 Rewire . | . . . . . . Trap . | . . . . . . Miscellaneous . | . . . . . . Route ------- -11/Scrapyard -10/Materials (discovered 3 exits: [*Min x2] / [*Sub]) -10/Subcaves -8/Materials -7/Factory -6/Factory History --------- Turn | Location | Event 5 | -11/Scrapyard | Discovered new exit (range 16) 3553 | -11/Scrapyard | Entered Materials 3554 | -10/Materials | Build established: Mutant 3644 | -10/Materials | Discovered new exit (range 16) 4016 | -10/Materials | Discovered new exit (range 9) 4539 | -10/Materials | Discovered new exit (range 12) 4650 | -10/Materials | Entered Subcaves 4702 | -10/Subcaves | Disturbed a concealed Subdweller 4724 | -10/Subcaves | Learned Materials trap positions 4759 | -10/Subcaves | Learned Materials emergency access door positions 4788 | -10/Subcaves | Ambushed by swarm of Subdwellers 4798 | -10/Subcaves | Shifting Twisted Machinery released Sub. Machine Gun 4809 | -10/Subcaves | Shifting Twisted Machinery released Sub. Optics 4812 | -10/Subcaves | Shifting Twisted Machinery released Mak. Axe 4814 | -10/Subcaves | Shifting Twisted Machinery released Sub. Shrapnel Launcher 4817 | -10/Subcaves | Learned location of 1 exit from Materials 5015 | -10/Subcaves | Learned location of Zion (-7) 5015 | -10/Subcaves | Met a Zionite searching for "candidates" 5053 | -10/Subcaves | Build established: Subdweller-Mutant 5295 | -10/Subcaves | Discovered new exit (range 11) 5624 | -10/Subcaves | Entered Materials 5624 | -8/Materials | Evolved 4 slots: Utility x2, Weapon x2 5625 | -8/Materials | Identified exit to Factory 5626 | -8/Materials | Loaded intel: 13 trap records 5920 | -8/Materials | Build established: Subdweller-Tank 6145 | -8/Materials | Core integrity fell below 50% 6178 | -8/Materials | Lost 3 parts (1u2w) 6366 | -8/Materials | Core integrity fell below 20% 6399 | -8/Materials | Lost 6 parts (1p1n4w) 6434 | -8/Materials | Destroyed 7 combat bots 6657 | -8/Materials | Entered Factory 6657 | -7/Factory | Evolved 2 slots: Propulsion x2 7269 | -7/Factory | Build established: Gunner 7991 | -7/Factory | Lost 5 parts (1p1n3w) 8069 | -7/Factory | Discovered new exit (range 10) 8075 | -7/Factory | Entered another Factory area 8075 | -6/Factory | Evolved 2 slots: Power x1, Utility x1 8236 | -6/Factory | Build established: Mutant 8452 | -6/Factory | System corruption reached 10% 8513 | -6/Factory | Core integrity fell below 50% 8600 | -6/Factory | Core integrity fell below 20% 8625 | -6/Factory | Spotted B-75 Beast 8628 | -6/Factory | Lost 4 parts (1p1n1u1w) 8797 | -6/Factory | Destroyed by S-27 Virus with Autogun Last Messages --------------- System corrupted: Component data lost. ALERT: Cargo convoy en route, clear transfer corridor. System corrupted: Matter fused (-5). S-27 Virus suffers critical hit (Burn). Lgt. Nuclear Core melted. S-27 Virus destroyed. Switching to secondary target: S-27 Virus. Hacking Suite destroyed. S-27 Virus destroyed. Switching to secondary target: S-27 Virus. S-27 Virus destroyed. K-01 Serf collects debris. System corrupted: Component data lost. R-10 Processor collects VTOL Module. K-01 Serf collects debris. R-10 Processor collects Lgt. Nuclear Core. K-01 Serf collects debris. S-27 Virus destroyed. K-01 Serf destroyed. Map ----- +----------------------------------------------------+ | ##???# """"" #????????#! #???????? | | #???# """"" "" #????????# #???????? | | #???# """ Y" ########## ! #???????? | | ##### "" + + #???????? | | + + / # # = #???????? | | # ##########+####+## # #???????? | | # #??????? # #???????? | | # #??????# #####+#############???????? | | # #??????# + #????????????? | | # #??????# # " " " " " #????????????? | | + ?????? # " " " " " #????????????? | | # ??? # " " " " " #????????????? | | ## # " " " " " #????????????? | | # " " " " " #????????????? | | # " " " " " #????????????? | | # " " " " " #????????????? | | #### + " " " " " #????????????? | | ?????? """"""""" # " " " " " #????????????? | | ?????????""""""" # #????????????? | | ?????????????""" # ! #????????????? | | ?????????????""" ##+###########????????????? | | ?????????????""" #??????????????????????? | | ???????????""""" #??????????????????????? | | ?????????? #??????????????????????? | | ?????????? #??????????????????????? | | ?????????? % @#??????????????????????? | | ?????????? #??????????????????????? | | ?????????? % ??????????????????????? | | ??????????? % s ??????????????????????? | | ??????????? ?????????????????????? | | ????????????k u R ?????????????????????? | | ???????????? R ????????????????????? | | ????????????###### k ????????????????????? | | ?????????????????# ???????????????????? | | ?????????????????# """ === ???????????????????? | | ?????????????????# """s=== ??????????????????? | | ?????????????????# ?""%== ??????????????????? | | ?????????????????# ??? = ?????????????????? | | ?????????????????? ???? s! ?????????????????? | | ???????????????????????#####+#???????????????????? | | ?????????????????????????????????????????????????? | | ?????????????????????????????????????????????????? | | ?????????????????????????????????????????????????? | | ?????????????????????????????????????????????????? | | ?????????????????????????????????????????????????? | | ?????????????????????????????????????????????????? | | ?????????????????????????????????????????????????? | | ?????????????????????????????????????????????????? | | ?????????????????????????????????????????????????? | | ?????????????????????????????????????????????????? | +----------------------------------------------------+ Best States ------------- Heat Dissipation 51 Coolant Potential 65 Energy Generation 27 Energy Capacity 350 Matter Stores 300 Matter Capacity 300 Sight Range 21 Terrain Scan Range 16 Terrain Scan Density 10 Jamming Range 12 Armor Coverage 800 Core Shielding 20 Evasion (%) 55 Targeting Accuracy 6 Core Analysis 6 Recoil Reduction 2 Offensive Hacking 10 Item Schematics ----------------- Adv. Assault Cannon | -7/Factory | Scanalyzed Robot Schematics ------------------ None Fabricated ------------ Nothing Alien Tech Used ----------------- None Achievements -------------- None Challenges ------------ None Game ------ Seed DecoderGunStabilizer Manual? 0 Play Time 00:53:32 Cumulative 11.5 hours Start 2024.04.03 @ 17:24:06 End 2024.04.03 @ 18:14:08 Sessions 1 Manual Loads 0 Difficulty Rogue Special Mode None Game No. 19 Rogue 19 Adventurer 0 Explorer 0 Win Type - Total 0 Types 0/0/0/0/0/0/0/0/0 Lore% 19 Gallery% 21 Achievement% 14 Wizard Run 0 Options --------- Layout 1 ASCII 0 Keyboard 0 Movement Numpad Keybinds 0 Fullscreen 1 Font 32/TamsynBold Map View 50x35 Zoom Use 0% Tactical HUD 0 Map Filters NONE Filters NONE Steam 1 RUN: ffb6d341-13ee-4095-9995-7f556f856276